fUSD/lending_fUSD_20260109
["ID","MTS","AMOUNT","RATE_DAILY","PERIOD"]
[401112310,1767941440751,-4336.36,0.00015876,2]
[401112311,1767941440760,-200.0,0.00015876,2]
[401112313,1767941440769,-1000.0,0.00015918,2]
[401112315,1767941440778,-170.48808796,0.00015925,2]
[401112317,1767941440787,-170.48808796,0.00015925,2]
[401112319,1767941440796,-500.0,0.0001597,2]
[401112321,1767941440805,-200.447904,0.00016,2]
[401112323,1767941440814,-1500.0,0.00016021,2]
[401112324,1767941440823,-323.72,0.00016062,2]
[401112326,1767941440832,-482.82,0.00016082,2]
[401112328,1767941440841,-2049.66,0.00016116,2]
[401112352,1767941441225,-510.0,0.00016155,2]
[401112358,1767941441284,-2048.79683742,0.00016199,2]
[401112360,1767941441293,-1000.0,0.00016216,2]
[401112361,1767941441303,-2000.0,0.00016406,2]
[401112363,1767941441313,-1680.0,0.00016428,2]
[401112366,1767941441322,-1000.0,0.00016438,2]
[401112367,1767941441333,-1000.0,0.00016438,2]
[401112369,1767941441342,-1000.0,0.00016438,2]
[401112371,1767941441354,-500.0,0.00016438,2]
[401112373,1767941441365,-500.0,0.00016438,2]
[401112375,1767941441374,-500.0,0.00016438,2]
[401112377,1767941441384,-500.0,0.00016438,2]
[401112379,1767941441392,-511.85948094,0.00016438,2]
[401112381,1767941441401,-207.79285348,0.00016438,2]
[401112383,1767941441410,-164.76,0.0001644,2]
[401112385,1767941441421,-164.76,0.0001644,2]
[401112387,1767941441432,-229.16053007,0.00016458,2]
[401112389,1767941441441,-1000.0,0.00016515,2]
[401112391,1767941441450,-1344.5,0.00016564,2]
[401112393,1767941441459,-6860.56672342,0.00016584,2]
[401112395,1767941441468,-1344.5,0.00016695,2]
[401112397,1767941441478,-158.57,0.00016712,2]
[401112399,1767941441487,-469.60768673,0.00016748,2]
[401112401,1767941441496,-1344.5,0.00016825,2]
[401112403,1767941441506,-6860.56672342,0.00016913,2]
[401112405,1767941441515,-150.0,0.00016923,2]
[401112407,1767941441524,-1344.5,0.00016956,2]
[401112409,1767941441534,-200.0,0.00016983,2]
[401112411,1767941441544,-50546.06,0.00016986,2]
[401112413,1767941441553,-661.58,0.00017041,2]
[401112415,1767941441562,-482.82,0.00017041,2]
[401112417,1767941441572,-482.82,0.00017041,2]
[401112419,1767941441581,-482.82,0.00017041,2]
[401112421,1767941441591,-1323.16,0.00017041,2]
[401112423,1767941441600,-482.82,0.00017041,2]
[401112426,1767941441610,-157.78803464,0.00017072,2]
[401112427,1767941441619,-1344.5,0.00017086,2]
[401112430,1767941441629,-322.6107,0.00017099,2]
[401112431,1767941441639,-303.65393209,0.00017099,2]
[401112434,1767941441648,-578.20924308,0.00017099,2]
[401112436,1767941441658,-620.0,0.00017099,2]
[401112438,1767941441667,-151.0,0.00017099,2]
[401112439,1767941441676,-553.64373807,0.00017099,2]
[401112442,1767941441685,-1000.0,0.00017112,2]
[401112444,1767941441695,-179.09,0.00017178,2]
[401112446,1767941441704,-1344.5,0.00017217,2]
[401112448,1767941441713,-6860.56672342,0.00017242,2]
[401112449,1767941441723,-425.33,0.00017262,2]
[401112451,1767941441732,-1020.08839075,0.00017294,2]
[401112453,1767941441741,-1344.5,0.00017347,2]
[401112455,1767941441750,-866.0,0.00017372,2]
[401112458,1767941441759,-1344.5,0.00017478,2]
[401112459,1767941441768,-3570.0,0.00017541,2]
[401112462,1767941441778,-6860.56672342,0.00017571,2]
[401112464,1767941441787,-1000.0,0.000176,2]
[401112465,1767941441797,-1344.5,0.00017608,2]
[401112468,1767941441806,-870.99025009,0.0001764,2]
[401112469,1767941441815,-151.0,0.00017647,2]
[401112472,1767941441825,-574.12855637,0.00017647,2]
[401112473,1767941441834,-958.0,0.00017682,2]
[401112475,1767941441843,-1000.0,0.00017709,2]
[401112477,1767941441852,-933.42,0.00017722,2]
[401112479,1767941441862,-1344.5,0.00017739,2]
[401112481,1767941441871,-958.0,0.00017753,2]
[401112483,1767941441880,-958.0,0.00017791,2]
[401112485,1767941441890,-2000.0,0.000178,2]
[401112488,1767941441899,-1000.0,0.000178,2]
[401112489,1767941441908,-497.09005,0.0001782,2]
[401112492,1767941441917,-497.09006,0.0001782,2]
[401112494,1767941441927,-497.09006,0.0001783,2]
[401112496,1767941441936,-958.0,0.00017841,2]
[401112497,1767941441946,-200.0,0.00017856,2]
[401112500,1767941441955,-497.09005,0.0001786,2]
[401112502,1767941441965,-1344.5,0.00017869,2]
[401112503,1767941441974,-497.09006,0.0001788,2]
[401112506,1767941441984,-239.27383128,0.0001789,2]
[401112508,1767941441993,-10000.0,0.000179,2]
[401112509,1767941442004,-1111.94901075,0.000179,2]
[401112511,1767941442015,-565.17771938,0.000179,2]
[401112513,1767941442024,-162.92867623,0.000179,2]
[401112515,1767941442034,-6860.56672342,0.000179,2]
[401112518,1767941442045,-1000.0,0.000179,2]
[401112520,1767941442055,-497.09006,0.0001791,2]
[401112522,1767941442064,-958.0,0.00017945,2]
[401112524,1767941442073,-500.0,0.00017973,2]
[401112526,1767941442085,-500.0,0.00017973,2]
[401112528,1767941442095,-500.0,0.00017973,2]
[401112530,1767941442104,-500.94146496,0.00017973,2]
[401112532,1767941442114,-500.0,0.00017973,2]
[401112534,1767941442123,-500.0,0.00017973,2]
[401112536,1767941442133,-500.0,0.00017973,2]
[401112538,1767941442142,-500.0,0.00017973,2]
[401112540,1767941442151,-500.0,0.00017973,2]
[401112542,1767941442161,-500.0,0.00017973,2]
[401112544,1767941442174,-500.0,0.00017973,2]
[401112546,1767941442184,-500.0,0.00017973,2]
[401112548,1767941442193,-500.0,0.00017973,2]
[401112550,1767941442202,-500.0,0.00017973,2]
[401112552,1767941442211,-500.0,0.00017973,2]
[401112554,1767941442221,-500.0,0.00017973,2]
[401112556,1767941442230,-500.0,0.00017973,2]
[401112558,1767941442239,-500.0,0.00017973,2]
[401112560,1767941442249,-500.0,0.00017973,2]
[401112562,1767941442258,-500.0,0.00017973,2]
[401112564,1767941442267,-500.0,0.00017973,2]
[401112566,1767941442277,-500.0,0.00017973,2]
[401112569,1767941442287,-190.88377587,0.00017973,2]
[401112571,1767941442296,-500.0,0.00017973,2]
[401112573,1767941442305,-500.0,0.00017973,2]
[401112575,1767941442315,-500.0,0.00017973,2]
[401112577,1767941442324,-500.0,0.00017973,2]
[401112579,1767941442333,-500.0,0.00017973,2]
[401112581,1767941442342,-500.0,0.00017973,2]
[401112583,1767941442352,-500.0,0.00017973,2]
[401112585,1767941442361,-500.0,0.00017973,2]
[401112586,1767941442370,-500.0,0.00017973,2]
[401112588,1767941442379,-433.25363423,0.00017973,2]
[401112590,1767941442389,-150.0,0.00017973,2]
[401112593,1767941442398,-500.0,0.00017973,2]
[401112594,1767941442407,-500.0,0.00017973,2]
[401112597,1767941442417,-500.0,0.00017973,2]
[401112599,1767941442429,-587.72916305,0.00017973,2]
[401112600,1767941442438,-500.51815801,0.00017973,2]
[401112602,1767941442448,-554.86072459,0.00017973,2]
[401112604,1767941442457,-165.3256661,0.00017973,2]
[401112606,1767941442466,-500.0,0.00017973,2]
[401112609,1767941442476,-500.0,0.00017973,2]
[401112610,1767941442485,-500.0,0.00017973,2]
[401112613,1767941442496,-500.0,0.00017973,2]
[401112614,1767941442506,-500.0,0.00017973,2]
[401112617,1767941442516,-182.86859792,0.00017973,2]
[401112619,1767941442526,-500.0,0.00017973,2]
[401112621,1767941442535,-546.15438132,0.00017973,2]
[401112623,1767941442545,-500.0,0.00017973,2]
[401112625,1767941442554,-150.0,0.00017973,2]
[401112627,1767941442564,-150.0,0.00017973,2]
[401112629,1767941442573,-631.06,0.00017973,2]
[401112631,1767941442582,-2345.0,0.00017977,2]
[401112633,1767941442592,-500.0,0.00017979,2]
[401112635,1767941442602,-500.0,0.00017979,2]
[401112636,1767941442611,-500.0,0.00017979,2]
[401112639,1767941442621,-500.0,0.00017979,2]
[401112640,1767941442631,-526.62,0.00017979,2]
[401112642,1767941442640,-242.0,0.00017988,2]
[401112645,1767941442650,-164.76,0.00017988,2]
[401112646,1767941442659,-239.27383128,0.0001799,2]
[401112648,1767941442668,-239.27383128,0.0001799,2]
[401112651,1767941442677,-164.76,0.0001799,2]
[401112653,1767941442687,-958.0,0.00017992,2]
[401112655,1767941442696,-60304.41253231,0.00017998,2]
[401112716,1767941444364,-500.0,0.00015858,2]
[401112717,1767941444373,-482.82,0.00017041,2]
[401112718,1767941444383,-661.58,0.00017041,2]
[401112719,1767941444392,-3222.6,0.00017998,2]
[401112720,1767941444799,-1938.0774899,0.00016539,2]
[401112721,1767941444811,-110.71934752,0.00016539,2]
[401112722,1767941444820,-1380.90565248,0.00017998,2]
[401112723,1767941444831,-1772.16665824,0.00017998,2]
[401112726,1767941446159,-3281.0519054,0.00017998,2]
[401112728,1767941594042,195.0,0.00030137,120]
[401112729,1767941737112,5191.9,0.00030137,120]
[401113301,1767942632341,-266.0,0.0001409,2]
[401113302,1767942632351,-44.2158656,0.0001409,2]
[401113303,1767942632363,-667.2441344,0.0001409,2]
[401113304,1767942632372,-150.0,0.00014137,2]
[401113305,1767942632382,-222.12327296,0.00014188,2]
[401113306,1767942632392,-3240.0,0.00014249,2]
[401113307,1767942632402,-1200.0,0.00014287,2]
[401113308,1767942632411,-277.0,0.00014325,2]
[401113309,1767942632423,-481.0,0.00014327,2]
[401113310,1767942632433,-3560.61,0.00014328,2]
[401113311,1767942632445,-1002.85318538,0.0001464,2]
[401113312,1767942632508,-413.8620027,0.0001464,2]
[401113313,1767942632681,-2141.84481192,0.0001464,2]
[401113314,1767942632691,-1639.03746999,0.00014662,2]
[401113315,1767942632700,-6860.56672343,0.00014662,2]
[401113316,1767942632711,-170.488088,0.00014662,2]
[401113317,1767942632720,-150.0,0.00014735,2]
[401113318,1767942632730,-6975.88651117,0.00014736,2]
[401113323,1767942638398,-170.488088,0.00014662,2]
[401113324,1767942638407,-1672.56858811,0.00014736,2]
[401113526,1767942640529,-258.39013124,0.00014736,2]
[401113536,1767942640613,-991093.15476948,0.00014736,2]
[401113538,1767942640623,-500.0,0.00014763,2]
[401113540,1767942640633,-500.0,0.00014763,2]
[401113542,1767942640643,-503.2370208,0.00014763,2]
[401113544,1767942640652,-500.0,0.00014763,2]
[401113546,1767942640661,-1651.8498,0.00014836,2]
[401113548,1767942640670,-2500.0,0.00014836,2]
[401113549,1767942640679,-500.0,0.00014836,2]
[401113552,1767942640688,-500.0,0.00014836,2]
[401113553,1767942640697,-500.0,0.00014836,2]
[401113556,1767942640707,-500.0,0.00014836,2]
[401113557,1767942640717,-470.08509576,0.00014836,2]
[401113559,1767942640726,-500.0,0.00014836,2]
[401113561,1767942640735,-500.0,0.00014836,2]
[401113563,1767942640744,-500.0,0.00014836,2]
[401113565,1767942640753,-500.0,0.00014836,2]
[401113567,1767942640763,-556.02860294,0.00014836,2]
[401113569,1767942640772,-500.0,0.00014836,2]
[401113571,1767942640782,-500.0,0.00014836,2]
[401113573,1767942640791,-3197.92,0.00014837,2]
[401113575,1767942640800,-229.16053007,0.00014838,2]
[401113577,1767942640810,-162.92867624,0.00014838,2]
[401113579,1767942640819,-202.03636675,0.00014927,2]
[401113581,1767942640827,-151.0,0.00014927,2]
[401113583,1767942640836,-151.0,0.00014927,2]
[401113585,1767942640845,-151.0,0.00014927,2]
[401113587,1767942640856,-151.0,0.00014927,2]
[401113589,1767942640866,-151.0,0.00014927,2]
[401113591,1767942640875,-151.0,0.00014927,2]
[401113593,1767942640885,-151.0,0.00014927,2]
[401113595,1767942640894,-151.0,0.00014927,2]
[401113597,1767942640904,-151.0,0.00014927,2]
[401113599,1767942640913,-151.0,0.00014927,2]
[401113601,1767942640923,-151.0,0.00014927,2]
[401113603,1767942640933,-151.0,0.00014927,2]
[401113606,1767942640943,-812.98,0.00014927,2]
[401113607,1767942640952,-278.03408977,0.00014935,2]
[401113609,1767942640961,-335.64905435,0.00014935,2]
[401113611,1767942640971,-500.0,0.00014935,2]
[401113613,1767942640980,-500.0,0.00014935,2]
[401113615,1767942640990,-280.24223055,0.00014935,2]
[401113617,1767942640999,-500.0,0.00014935,2]
[401113619,1767942641008,-500.0,0.00014935,2]
[401113621,1767942641017,-500.0,0.00014935,2]
[401113624,1767942641036,-1000.0,0.00014938,2]
[401113626,1767942641046,-1639.03746993,0.00015022,2]
[401113628,1767942641055,-6860.56672342,0.00015022,2]
[401113630,1767942641064,-170.48808796,0.00015202,2]
[401113632,1767942641074,-500.0,0.0001526,2]
[401113634,1767942641082,-1000.0,0.0001531,2]
[401113636,1767942641092,-1000.0,0.0001531,2]
[401113638,1767942641101,-572.03852483,0.0001531,2]
[401113640,1767942641111,-1639.03746993,0.00015382,2]
[401113642,1767942641120,-6860.56672342,0.00015382,2]
[401113644,1767942641130,-200.1745908,0.00015463,2]
[401113645,1767942641139,-863.72,0.00015516,2]
[401113646,1767942641148,-195.94804941,0.00015551,2]
[401113647,1767942641158,-841.55613303,0.00015551,2]
[401113648,1767942641167,-300.0,0.00015551,2]
[401113649,1767942641176,-3197.92,0.00015579,2]
[401113650,1767942641185,-151.0,0.00015646,2]
[401113651,1767942641194,-151.0,0.00015646,2]
[401113652,1767942641203,-151.0,0.0001565,2]
[401113653,1767942641212,-151.0,0.0001565,2]
[401113654,1767942641221,-151.0,0.00015655,2]
[401113655,1767942641230,-1680.0,0.00015716,2]
[401113656,1767942641239,-1639.03746993,0.00015741,2]
[401113657,1767942641249,-6860.56672342,0.00015741,2]
[401113658,1767942641258,-711.46,0.00015851,2]
[401113659,1767942641267,-255.0,0.00015855,2]
[401113661,1767942641276,-1500.0,0.00015858,2]
[401113663,1767942641285,-1355.79917375,0.00015858,2]
[401113665,1767942641295,-200.0,0.00015954,2]
[401113667,1767942641304,-200.447904,0.00016,2]
[401113669,1767942641313,-1639.03746993,0.00016101,2]
[401113671,1767942641323,-6860.56672342,0.00016101,2]
[401113673,1767942641333,-482.82,0.00016141,2]
[401113675,1767942641342,-482.82,0.00016141,2]
[401113677,1767942641351,-500.0,0.00016164,2]
[401113679,1767942641361,-3197.92,0.00016321,2]
[401113681,1767942641370,-482.82,0.00016341,2]
[401113683,1767942641380,-2000.0,0.00016406,2]
[401113686,1767942641393,-1000.0,0.00016438,2]
[401113688,1767942641403,-1000.0,0.00016438,2]
[401113690,1767942641412,-1000.0,0.00016438,2]
[401113692,1767942641422,-24560.88,0.00016438,2]
[401113694,1767942641431,-207.79285348,0.00016438,2]
[401113696,1767942641441,-164.76,0.0001644,2]
[401113698,1767942641451,-164.76,0.0001644,2]
[401113700,1767942641461,-1639.03746993,0.00016461,2]
[401113702,1767942641470,-6860.56672342,0.00016461,2]
[401113704,1767942641480,-1344.5,0.00016607,2]
[401113706,1767942641493,-482.82,0.00016641,2]
[401113708,1767942641503,-1344.5,0.00016734,2]
[401113710,1767942641513,-469.60768673,0.00016751,2]
[401113712,1767942641524,-1639.03746993,0.00016821,2]
[401113714,1767942641535,-6860.56672342,0.00016821,2]
[401113716,1767942641544,-1344.5,0.0001686,2]
[401113718,1767942641554,-863.72,0.00016886,2]
[401113720,1767942641565,-150.0,0.00016897,2]
[401113772,1767942642029,-202.40812472,0.00016941,2]
[401113775,1767942642050,-2500.0,0.00016954,2]
[401113777,1767942642060,-1344.5,0.00016987,2]
[401113779,1767942642069,-250.0,0.00017,2]
[401113781,1767942642078,-661.58,0.00017041,2]
[401113783,1767942642088,-482.82,0.00017041,2]
[401113785,1767942642097,-426.06,0.00017041,2]
[401113787,1767942642106,-661.58,0.00017041,2]
[401113789,1767942642115,-661.58,0.00017041,2]
[401113791,1767942642124,-661.58,0.00017041,2]
[401113793,1767942642134,-661.58,0.00017041,2]
[401113795,1767942642142,-621.5,0.00017041,2]
[401113797,1767942642152,-3197.92,0.00017062,2]
[401113799,1767942642161,-433.0,0.00017063,2]
[401113801,1767942642172,-322.6107,0.00017099,2]
[401113803,1767942642181,-303.65393209,0.00017099,2]
[401113805,1767942642190,-553.64373807,0.00017099,2]
[401113807,1767942642199,-151.0,0.00017099,2]
[401113809,1767942642207,-620.0,0.00017099,2]
[401113811,1767942642216,-578.20924308,0.00017099,2]
[401113813,1767942642225,-1020.08839075,0.00017099,2]
[401113815,1767942642236,-661.58,0.000171,2]
[401113817,1767942642245,-661.58,0.000171,2]
[401113819,1767942642254,-157.78803464,0.00017102,2]
[401113821,1767942642264,-3272.0,0.00017103,2]
[401113823,1767942642274,-1344.5,0.00017114,2]
[401113825,1767942642284,-150.0,0.00017178,2]
[401113827,1767942642293,-150.0,0.00017178,2]
[401113829,1767942642302,-150.0,0.00017178,2]
[401113831,1767942642311,-150.0,0.00017178,2]
[401113833,1767942642320,-179.09,0.00017178,2]
[401113835,1767942642330,-933.42,0.00017178,2]
[401113837,1767942642339,-150.0,0.00017178,2]
[401113839,1767942642349,-300.0,0.00017178,2]
[401113841,1767942642358,-1639.03746993,0.0001718,2]
[401113843,1767942642368,-6860.56672342,0.0001718,2]
[401113846,1767942642378,-1344.5,0.0001724,2]
[401113848,1767942642388,-18495.85,0.00017247,2]
[401113850,1767942642399,-2351.0,0.00017288,2]
[401113852,1767942642411,-661.58,0.000173,2]
[401113854,1767942642422,-500.0,0.00017315,2]
[401113856,1767942642431,-1344.5,0.00017367,2]
[401113858,1767942642440,-3272.0,0.00017374,2]
[401113860,1767942642449,-3272.0,0.00017397,2]
[401113862,1767942642459,-1344.5,0.00017493,2]
[401113864,1767942642468,-178.0,0.000175,2]
[401113866,1767942642479,-2000.0,0.000175,2]
[401113867,1767942642489,-3272.0,0.00017502,2]
[401113869,1767942642498,-3272.0,0.00017504,2]
[401113872,1767942642508,-239.27383128,0.0001753,2]
[401113874,1767942642518,-3272.0,0.00017535,2]
[401113876,1767942642528,-1639.03746993,0.0001754,2]
[401113878,1767942642538,-6860.56672342,0.0001754,2]
[401113880,1767942642547,-3272.0,0.00017547,2]
[401113882,1767942642557,-168.0,0.00017568,2]
[401113884,1767942642566,-661.58,0.000176,2]
[401113886,1767942642575,-711.46,0.00017613,2]
[401113888,1767942642584,-1344.5,0.0001762,2]
[401113890,1767942642594,-870.99025009,0.0001764,2]
[401113892,1767942642603,-3272.0,0.00017643,2]
[401113894,1767942642612,-574.12855637,0.00017647,2]
[401113896,1767942642621,-151.0,0.00017647,2]
[401113898,1767942642631,-168.0,0.00017647,2]
[401113900,1767942642640,-1000.0,0.000177,2]
[401113902,1767942642649,-661.47,0.00017731,2]
[401113904,1767942642660,-661.47,0.00017731,2]
[401113906,1767942642669,-1344.5,0.00017747,2]
[401113908,1767942642680,-661.58,0.00017752,2]
[401113910,1767942642690,-1320.85,0.00017752,2]
[401113912,1767942642700,-661.47,0.00017752,2]
[401113914,1767942642709,-661.47,0.00017752,2]
[401113916,1767942642719,-661.47,0.00017752,2]
[401113918,1767942642728,-397.66,0.00017752,2]
[401113920,1767942642738,-1000.0,0.000178,2]
[401113922,1767942642747,-3197.92,0.00017804,2]
[401113924,1767942642756,-198.83602,0.0001782,2]
[401113926,1767942642765,-198.83602,0.0001782,2]
[401113928,1767942642774,-198.83602,0.0001783,2]
[401113931,1767942642784,-200.0,0.00017856,2]
[401113933,1767942642793,-198.83602,0.0001786,2]
[401113935,1767942642802,-168.0,0.00017872,2]
[401113937,1767942642812,-1344.5,0.00017873,2]
[401113939,1767942642821,-198.83602,0.0001788,2]
[401113941,1767942642831,-202.40812472,0.000179,2]
[401113943,1767942642840,-10000.0,0.000179,2]
[401113945,1767942642849,-8170.43664708,0.000179,3]
[401113947,1767942642859,-162.92867623,0.000179,2]
[401113949,1767942642868,-631.06,0.000179,2]
[401113951,1767942642878,-565.17771938,0.000179,2]
[401113953,1767942642887,-1000.0,0.000179,2]
[401113955,1767942642897,-1639.03746993,0.000179,2]
[401113957,1767942642906,-6860.56672342,0.000179,2]
[401113959,1767942642915,-500.0,0.000179,2]
[401113961,1767942642924,-500.0,0.000179,2]
[401113963,1767942642933,-500.0,0.000179,2]
[401113965,1767942642942,-500.0,0.000179,2]
[401113967,1767942642951,-500.0,0.000179,2]
[401113969,1767942642960,-353.0225826,0.000179,2]
[401114203,1767942645156,-219.69659517,0.00014662,2]
[401114205,1767942645165,-500.0,0.00014836,2]
[401114207,1767942645174,-500.0,0.00014836,2]
[401114208,1767942645183,-500.0,0.00014836,2]
[401114210,1767942645192,-500.0,0.00014836,2]
[401114212,1767942645201,-242.68147203,0.00014836,2]
[401114248,1767942645516,-257.31852797,0.00014836,2]
[401114249,1767942645526,-500.0,0.00014836,2]
[401114251,1767942645538,-134.2736936,0.00014836,2]
[401114349,1767942646498,-365.7263064,0.00014836,2]
[401114351,1767942646507,-500.0,0.00014836,2]
[401114353,1767942646516,-500.0,0.00014836,2]
[401114355,1767942646526,-500.0,0.00014836,2]
[401114357,1767942646535,-500.0,0.00014836,2]
[401114359,1767942646544,-500.0,0.00014836,2]
[401114361,1767942646553,-500.0,0.00014836,2]
[401114363,1767942646563,-500.0,0.00014836,2]
[401114365,1767942646572,-500.0,0.00014836,2]
[401114367,1767942646581,-500.0,0.00014836,2]
[401114369,1767942646590,-500.0,0.00014836,2]
[401114371,1767942646599,-500.0,0.00014836,2]
[401114373,1767942646608,-500.0,0.00014836,2]
[401114375,1767942646617,-500.0,0.00014836,2]
[401114377,1767942646627,-500.0,0.00014836,2]
[401114379,1767942646636,-500.0,0.00014836,2]
[401114381,1767942646645,-500.0,0.00014836,2]
[401114383,1767942646656,-500.0,0.00014836,2]
[401114385,1767942646665,-500.0,0.00014836,2]
[401114387,1767942646674,-500.0,0.00014836,2]
[401114389,1767942646683,-443.3360196,0.00014836,2]
[401114391,1767942646692,-170.48808796,0.00015202,2]
[401114393,1767942646701,-170.48808796,0.00015741,2]
[401114395,1767942646711,-170.48808796,0.00015741,2]
[401114397,1767942646720,-151.0,0.00017785,2]
[401114399,1767942646730,-146.9774174,0.000179,2]
[401114401,1767942646739,-500.0,0.000179,2]
[401114403,1767942646749,-500.0,0.000179,2]
[401114405,1767942646758,-500.0,0.000179,2]
[401114407,1767942646767,-500.0,0.000179,2]
[401114409,1767942646776,-500.0,0.000179,2]
[401114411,1767942646786,-500.0,0.000179,2]
[401114413,1767942646795,-500.0,0.000179,2]
[401114415,1767942646804,-500.0,0.000179,2]
[401114417,1767942646814,-500.0,0.000179,2]
[401114419,1767942646823,-500.0,0.000179,2]
[401114421,1767942646832,-500.0,0.000179,2]
[401114423,1767942646842,-500.0,0.000179,2]
[401114425,1767942646850,-500.0,0.000179,2]
[401114427,1767942646859,-500.0,0.000179,2]
[401114429,1767942646869,-198.83603,0.0001791,2]
[401114431,1767942646878,-6004.0299076,0.00017938,2]
[401114433,1767942646887,-11572.7766677,0.00017938,2]
[401114435,1767942646897,-26755.7191734,0.00017938,2]
[401114437,1767942646906,-70398.4073125,0.00017938,2]
[401114439,1767942646915,-31977.3029425,0.00017938,2]
[401114441,1767942646924,-34212.8133981,0.00017938,2]
[401114443,1767942646935,-164.76,0.00017962,2]
[401114445,1767942646944,-257.0,0.00017969,2]
[401114447,1767942646953,-3608.0,0.00017971,2]
[401114449,1767942646962,-47374.9676581,0.00017972,2]
[401114451,1767942646971,-500.0,0.00017973,2]
[401114453,1767942646980,-500.0,0.00017973,2]
[401114455,1767942646989,-500.0,0.00017973,2]
[401114457,1767942646999,-500.0,0.00017973,2]
[401114459,1767942647008,-500.0,0.00017973,2]
[401114461,1767942647018,-190.88377587,0.00017973,2]
[401114463,1767942647027,-500.0,0.00017973,2]
[401114465,1767942647036,-433.25363423,0.00017973,2]
[401114467,1767942647045,-500.94146496,0.00017973,2]
[401114469,1767942647054,-500.0,0.00017973,2]
[401114471,1767942647063,-500.0,0.00017973,2]
[401114473,1767942647072,-500.0,0.00017973,2]
[401114475,1767942647081,-500.0,0.00017973,2]
[401114477,1767942647093,-500.0,0.00017973,2]
[401114479,1767942647108,-150.0,0.00017973,2]
[401114480,1767942647117,-500.0,0.00017973,2]
[401114482,1767942647126,-500.0,0.00017973,2]
[401114484,1767942647135,-500.0,0.00017973,2]
[401114486,1767942647145,-500.0,0.00017973,2]
[401114488,1767942647154,-500.0,0.00017973,2]
[401114490,1767942647169,-500.0,0.00017973,2]
[401114492,1767942647185,-500.0,0.00017973,2]
[401114494,1767942647194,-500.0,0.00017973,2]
[401114496,1767942647204,-500.0,0.00017973,2]
[401114498,1767942647215,-500.0,0.00017973,2]
[401114500,1767942647224,-500.0,0.00017973,2]
[401114502,1767942647234,-500.0,0.00017973,2]
[401114504,1767942647243,-500.0,0.00017973,2]
[401114506,1767942647252,-500.0,0.00017973,2]
[401114508,1767942647262,-500.0,0.00017973,2]
[401114510,1767942647271,-182.86859792,0.00017973,2]
[401114512,1767942647280,-500.0,0.00017973,2]
[401114514,1767942647290,-587.72916305,0.00017973,2]
[401114516,1767942647298,-500.0,0.00017973,2]
[401114518,1767942647308,-500.0,0.00017973,2]
[401114520,1767942647317,-500.0,0.00017973,2]
[401114522,1767942647326,-500.51815801,0.00017973,2]
[401114524,1767942647336,-500.0,0.00017973,2]
[401114526,1767942647345,-500.0,0.00017973,2]
[401114528,1767942647354,-554.86072459,0.00017973,2]
[401114530,1767942647364,-165.3256661,0.00017973,2]
[401114532,1767942647373,-500.0,0.00017973,2]
[401114534,1767942647382,-500.0,0.00017973,2]
[401114535,1767942647392,-500.0,0.00017973,2]
[401114536,1767942647401,-500.0,0.00017973,2]
[401114537,1767942647410,-500.0,0.00017973,2]
[401114538,1767942647420,-208.06887662,0.00017973,2]
[401114539,1767942647429,-500.0,0.00017973,2]
[401114540,1767942647439,-500.0,0.00017973,2]